[Event "Budapest Spring Festival 2018"]
[Site "Budapest"]
[Date "2018.04.22"]
[Round "5"]
[White "Nitin, S."]
[Black "Marszalek, Maciej"]
[Result "1-0"]
[ECO "B43"]
[WhiteElo "2408"]
[BlackElo "2289"]
[Annotator "ChessBase"]
[PlyCount "57"]
[EventDate "2018.??.??"]
[EventType "swiss"]
[EventCountry "HUN"]
[SourceTitle "playchess.com"]
[Source "ChessBase"]
[SourceQuality "1"]
[TimeControl "40/5400+30:1800+30"]

1. e4 {[%emt 0:00:25]} c5 {[%emt 0:00:38]} 2. Nf3 {[%emt 0:00:23]} e6 {[%emt 0:00:06]} 3. d4 {[%emt 0:00:08]} cxd4 {[%emt 0:00:09]} 4. Nxd4 {[%emt 0:00:07]} a6 {[%emt 0:00:05]} 5. Nc3 {[%emt 0:00:53]} Qc7 {[%emt 0:00:05]} 6. Bd3 {[%emt 0:00:12]} Nf6 {[%emt 0:03:18]} 7. f4 {[%emt 0:00:32]} d6 {[%emt 0:01:27]} 8. Qe2 {[%emt 0:01:27]} Nc6 {[%emt 0:02:51]} 9. Nxc6 {[%emt 0:01:37]} bxc6 {[%emt 0:02:34]} 10. O-O {[%emt 0:01:00]} d5 {[%emt 0:04:33]} 11. Kh1 {[%emt 0:00:45]} Be7 {[%emt 0:00:58]} 12. Bd2 {[%emt 0:04:17]} Rb8 {[%emt 0:18:09]} 13. b3 {[%emt 0:01:02]} a5 {[%emt 0:04:21]} 14. Rae1 {[%emt 0:00:56]} g6 {[%emt 0:02:54]} 15. exd5 {[%emt 0:02:26]} cxd5 {[%emt 0:00:24]} 16. f5 {[%emt 0:02:31]} gxf5 {[%emt 0:04:19]} 17. Bxf5 {[%emt 0:09:09]} Rb4 {[%emt 0:01:50]} 18. Nb5 {[%emt 0:02:30]} Qc5 {[%emt 0:03:28]} 19. Bxb4 {[%emt 0:05:06]} axb4 {[%emt 0:00:15]} 20. Bd3 {[%emt 0:00:15]} Ne4 {[%emt 0:05:20]} 21. c4 {[%emt 0:03:55]} bxc3 {[%emt 0:01:44]} 22. Bxe4 {[%emt 0:00:37]} dxe4 {[%emt 0:00:11]} 23. Nxc3 {[%emt 0:00:50]} f5 {[%emt 0:06:13]} 24. Nxe4 {[%emt 0:00:53]} Qd5 {[%emt 0:02:03]} 25. Qh5+ {[%emt 0:00:39]} Kf8 {[%emt 0:00:09]} 26. Ng5 {[%emt 0:04:57]} Bxg5 {[%emt 0:00:29]} 27. Qxg5 {[%emt 0:00:06]} Rg8 {[%emt 0:00:15]} 28. Qf6+ {[%emt 0:00:38]} Ke8 {[%emt 0:00:03]} 29. Rf2 {[%emt 0:00:24]} 1-0

[Event "Budapest Spring Festival 2018"]
[Site "Budapest"]
[Date "2018.04.22"]
[Round "5"]
[White "Langrock, Hannes"]
[Black "Szabo, Marton Mihaly"]
[Result "0-1"]
[ECO "A45"]
[WhiteElo "2391"]
[BlackElo "2281"]
[Annotator "NA"]
[PlyCount "68"]
[EventDate "2018.??.??"]
[EventType "swiss"]
[EventCountry "HUN"]
[SourceTitle "playchess.com"]
[Source "ChessBase"]
[SourceQuality "1"]
[TimeControl "40/5400+30:1800+30"]

1. d4 {[%emt 0:00:54]} Nf6 {[%emt 0:00:40]} 2. Bf4 {[%emt 0:00:33]} d5 {[%emt 0:00:16]} 3. e3 {[%emt 0:00:14]} e6 {[%emt 0:00:56]} 4. Nd2 {[%emt 0:00:46]} c5 {[%emt 0:00:22]} 5. c3 {[%emt 0:00:05]} Nc6 {[%emt 0:00:38]} 6. Ngf3 {[%emt 0:00:19]} cxd4 {[%emt 0:00:08]} 7. exd4 {[%emt 0:01:01] D02: 1 d4 d5 2 Nf3 sidelines, including 2...Nf6 3 g3 and 2...Nf6 3 Bf4} Nh5 {[%emt 0:00:16]} 8. Be3 {[%emt 0:00:52]} Bd6 {[%emt 0:00:34]} 9. g3 {[%emt 0:02:38]} (9. Bd3 Nf4 10. Bxf4 Bxf4 11. O-O O-O 12. Re1 Bd7 13. Ne5 Nxe5 14. dxe5 g6 {1-0 (104) Vidit,S (2715)-Aronian,L (2805) Riadh 2017}) 9... O-O {[%emt 0:01:40]} 10. Bd3 {[%emt 0:05:12]} f5 {[%emt 0:03:34]} 11. Ne5 {[%emt 0:00:40]} Nf6 {[%emt 0:00:40]} 12. f4 {[%emt 0:03:25]} Bd7 {[%emt 0:00:58]} 13. O-O $146 {[%emt 0:09:22]} ({Predecessor:} 13. Nxd7 Qxd7 14. Be2 Na5 {0-1 (46) Nihal,S (2532)-Sorokin,A (2511) Moscow 2018}) 13... Be8 {[%emt 0:02:14]} 14. a4 {[%emt 0:01:19]} Rc8 {[%emt 0:07:10]} 15. h3 {[%emt 0:06:35]} Kh8 {[%emt 0:10:24]} 16. Rf2 {[%emt 0:02:51]} Rc7 {[%emt 0:13:23]} 17. a5 {[%emt 0:02:22]} a6 {[%emt 0:07:13]} 18. Qf1 {[%emt 0:06:48]} Ne4 {[%emt 0:03:57]} 19. Nxe4 {[%emt 0:05:01]} fxe4 {[%emt 0:01:08]} 20. Be2 {[%emt 0:05:24]} Ne7 {[%emt 0:01:25]} 21. g4 {[%emt 0:01:32]} Ng6 {[%emt 0:04:58]} 22. c4 {[%emt 0:07:04]} Bxe5 {[%emt 0:03:56]} 23. fxe5 {[%emt 0:03:49]} Rxf2 {[%emt 0:00:27]} 24. Qxf2 {[%emt 0:00:12]} Rf7 {[%emt 0:03:40]} 25. Qg3 {[%emt 0:06:55]} dxc4 {[%emt 0:02:04]} 26. Bxc4 {[%emt 0:11:05]} Rf3 $19 {[%emt 0:01:54]} 27. Qe1 {[%emt 0:00:04]} Nf4 {[%emt 0:02:44]} 28. Bf1 {[%emt 0:03:01]} Bb5 {[%emt 0:01:46]} 29. Bxb5 {[%emt 0:09:09]} Nxh3+ {[%emt 0:08:47]} 30. Kh2 {[%emt 0:00:04]} axb5 {[%emt 0:00:51]} 31. a6 {[%emt 0:00:02]} bxa6 {[%emt 0:04:53]} 32. Rxa6 {[%emt 0:00:03]} h6 {[%emt 0:00:40]} 33. Rxe6 {[%emt 0:03:50]} Qc8 {[%emt 0:00:47]} 34. d5 {[%emt 0:00:34]} Qc2+ {[%emt 0:00:41]} 0-1

[Event "Budapest Spring Festival 2018"]
[Site "Budapest"]
[Date "2018.04.22"]
[Round "5"]
[White "Szieberth, Adam"]
[Black "Almasi, Istvan"]
[Result "1-0"]
[ECO "B08"]
[WhiteElo "2298"]
[BlackElo "2406"]
[Annotator "NA"]
[PlyCount "71"]
[EventDate "2018.??.??"]
[EventType "swiss"]
[EventCountry "HUN"]
[SourceTitle "playchess.com"]
[Source "ChessBase"]
[SourceQuality "1"]
[TimeControl "40/5400+30:1800+30"]

1. Nf3 {[%emt 0:00:06]} g6 {[%emt 0:01:32]} 2. e4 {[%emt 0:00:59]} Bg7 {[%emt 0:03:58]} 3. d4 {[%emt 0:01:14]} d6 {[%emt 0:00:15]} 4. h3 {[%emt 0:00:55]} Nf6 {[%emt 0:00:50]} 5. Nc3 {[%emt 0:00:46]} a6 {[%emt 0:00:58]} 6. Be3 {[%emt 0:05:30] B08: Pirc Defence: Classical System} b5 {[%emt 0:03:13]} (6... O-O 7. a4 Nc6 8. Be2 e6 9. O-O b6 10. d5 exd5 11. exd5 Ne7 12. Bc4 Bb7 13. Qd2 Nf5 14. Bf4 Qd7 15. Rfe1 Rfe8 16. Rxe8+ Rxe8 17. Re1 Rxe1+ 18. Qxe1 {½-½ (63) Caruana,F (2799)-Grischuk,A (2782) Saint Louis 2017}) 7. e5 {[%emt 0:05:26]} Nfd7 {[%emt 0:04:48]} 8. e6 {[%emt 0:17:45]} fxe6 {[%emt 0:04:50]} 9. Ng5 {[%emt 0:00:11]} Nf6 {[%emt 0:00:38]} 10. Bd3 $146 {[%emt 0:03:32]} ({Predecessor:} 10. Qf3 d5 11. Bd3 Nc6 12. Qg3 Nb4 13. O-O-O Nxd3+ 14. Rxd3 {0-1 (53) Tsenov,T (2141)-Hantak,A (2200) Brno 2010}) 10... d5 {[%emt 0:14:30]} 11. Ne2 {[%emt 0:06:59]} O-O {[%emt 0:06:06]} 12. Nf4 {[%emt 0:08:11]} Qd6 {[%emt 0:00:25]} 13. h4 {[%emt 0:04:33]} e5 {[%emt 0:06:27]} 14. dxe5 {[%emt 0:04:37]} Qxe5 {[%emt 0:00:03] [#]} 15. Nxh7 $1 {[%emt 0:08:12]} Nxh7 {[%emt 0:01:49]} 16. Nxg6 {[%emt 0:00:13]} Qe6 {[%emt 0:11:43]} 17. Qh5 {[%emt 0:10:20]} Nf6 {[%emt 0:00:30]} 18. Qg5 {[%emt 0:00:36]} Nc6 {[%emt 0:04:48]} 19. Nxf8 {[%emt 0:07:11]} Kxf8 {[%emt 0:00:08]} 20. h5 {[%emt 0:02:41]} d4 {[%emt 0:08:00]} 21. h6 $19 {[%emt 0:00:17]} Bh8 {[%emt 0:00:01]} 22. h7 {[%emt 0:00:26]} Ng4 {[%emt 0:01:45]} 23. Bf5 {[%emt 0:01:14]} Qd5 {[%emt 0:09:44]} 24. Qxg4 {[%emt 0:00:46]} dxe3 {[%emt 0:00:19]} 25. fxe3 {[%emt 0:00:12]} Bxf5 {[%emt 0:06:45]} 26. O-O {[%emt 0:02:00]} Nd4 {[%emt 0:03:19]} 27. exd4 {[%emt 0:02:35]} e6 {[%emt 0:00:15]} 28. c3 {[%emt 0:01:53]} Ke7 {[%emt 0:00:40]} 29. Qg3 {[%emt 0:01:18]} Rc8 {[%emt 0:01:57]} 30. Qg8 {[%emt 0:00:35]} Rf8 {[%emt 0:00:28]} 31. g4 {[%emt 0:01:15]} Bxd4+ {[%emt 0:00:49]} 32. cxd4 {[%emt 0:00:16]} Qxd4+ {[%emt 0:00:01]} 33. Rf2 {[%emt 0:00:21]} Qxf2+ {[%emt 0:00:12]} 34. Kxf2 {[%emt 0:00:07]} Bxh7+ {[%emt 0:00:03]} 35. Qxf8+ {[%emt 0:00:07]} Kxf8 {[%emt 0:00:02]} 36. Ke1 1-0

[Event "Budapest Spring Festival 2018"]
[Site "Budapest"]
[Date "2018.04.22"]
[Round "5"]
[White "Ilic, Zoran S"]
[Black "Drazic, Sinisa"]
[Result "1/2-1/2"]
[ECO "E11"]
[WhiteElo "2294"]
[BlackElo "2394"]
[Annotator "ChessBase"]
[PlyCount "143"]
[EventDate "2018.??.??"]
[EventType "swiss"]
[EventCountry "HUN"]
[SourceTitle "playchess.com"]
[Source "ChessBase"]
[SourceQuality "1"]
[TimeControl "40/5400+30:1800+30"]

1. d4 {[%emt 0:00:02]} Nf6 {[%emt 0:01:47]} 2. Nf3 {[%emt 0:00:14]} e6 {[%emt 0:00:06]} 3. c4 {[%emt 0:00:20]} Bb4+ {[%emt 0:00:02]} 4. Bd2 {[%emt 0:00:11]} c5 {[%emt 0:00:05]} 5. Bxb4 {[%emt 0:01:22]} cxb4 {[%emt 0:00:02]} 6. g3 {[%emt 0:00:30]} b6 {[%emt 0:00:03]} 7. Bg2 {[%emt 0:00:27]} Bb7 {[%emt 0:00:02]} 8. O-O {[%emt 0:00:33]} a5 {[%emt 0:00:06]} 9. a3 {[%emt 0:07:45]} Na6 {[%emt 0:00:19]} 10. axb4 {[%emt 0:01:38]} Nxb4 {[%emt 0:00:04]} 11. Nc3 {[%emt 0:00:14]} O-O {[%emt 0:00:17]} 12. Qd2 {[%emt 0:01:29]} Rc8 {[%emt 0:03:32]} 13. b3 {[%emt 0:04:37]} Qc7 {[%emt 0:00:28]} 14. Rfc1 {[%emt 0:02:15]} h6 {[%emt 0:02:56]} 15. d5 {[%emt 0:05:48]} exd5 {[%emt 0:08:45]} 16. cxd5 {[%emt 0:00:24]} Qb8 {[%emt 0:02:43]} 17. e4 {[%emt 0:04:50]} Rxc3 {[%emt 0:00:45]} 18. Qxc3 {[%emt 0:00:13]} Nxe4 {[%emt 0:00:02]} 19. Qd4 {[%emt 0:14:01]} Nc5 {[%emt 0:02:17]} 20. Rxc5 {[%emt 0:12:36]} bxc5 {[%emt 0:00:12]} 21. Qxc5 {[%emt 0:00:07]} Rc8 {[%emt 0:03:28]} 22. Qxa5 {[%emt 0:01:12]} Bxd5 {[%emt 0:02:06]} 23. Nd4 {[%emt 0:02:29]} Bxg2 {[%emt 0:01:16]} 24. Kxg2 {[%emt 0:01:19]} Qd6 {[%emt 0:06:01]} 25. Nf5 {[%emt 0:03:26]} Qc5 {[%emt 0:02:04]} 26. Qxc5 {[%emt 0:01:44]} Rxc5 {[%emt 0:00:23]} 27. Ne3 {[%emt 0:05:24]} Kf8 {[%emt 0:04:12]} 28. Ra4 {[%emt 0:01:32]} Rb5 {[%emt 0:00:22]} 29. Nf5 {[%emt 0:06:28]} Nc6 {[%emt 0:03:38]} 30. Ra8+ {[%emt 0:11:09]} Nb8 {[%emt 0:00:40]} 31. Nd4 {[%emt 0:00:14]} Rb7 {[%emt 0:01:19]} 32. Kf3 {[%emt 0:01:59]} Ke7 {[%emt 0:00:05]} 33. Ke4 {[%emt 0:01:33]} Nc6 {[%emt 0:00:16]} 34. Nxc6+ {[%emt 0:01:39]} dxc6 {[%emt 0:00:02]} 35. Ra3 {[%emt 0:00:29]} Kd6 {[%emt 0:00:26]} 36. Kd4 {[%emt 0:01:11]} g5 {[%emt 0:00:30]} 37. Kc4 {[%emt 0:03:05]} Re7 {[%emt 0:00:49]} 38. Ra2 {[%emt 0:01:08]} Re4+ {[%emt 0:00:05]} 39. Kd3 {[%emt 0:01:33]} Re5 {[%emt 0:01:16]} 40. Ra4 {[%emt 0:00:00]} Rf5 {[%emt 0:03:12]} 41. Rd4+ {[%emt 0:07:14]} Kc5 {[%emt 0:02:04]} 42. Rc4+ {[%emt 0:04:46]} Kb5 {[%emt 0:01:00]} 43. Ke3 {[%emt 0:01:26]} h5 {[%emt 0:05:13]} 44. f3 {[%emt 0:05:05]} f6 {[%emt 0:05:17]} 45. Rd4 {[%emt 0:02:19]} Re5+ {[%emt 0:01:48]} 46. Kd2 {[%emt 0:00:59]} Kc5 {[%emt 0:01:30]} 47. Rc4+ {[%emt 0:00:44]} Kb5 {[%emt 0:01:33]} 48. Rd4 {[%emt 0:00:14]} Rf5 {[%emt 0:01:17]} 49. Ke3 {[%emt 0:00:54]} Rc5 {[%emt 0:01:33]} 50. Kd2 {[%emt 0:00:18]} f5 {[%emt 0:01:10]} 51. Rd8 {[%emt 0:02:57]} Kb4 {[%emt 0:00:14]} 52. Rb8+ {[%emt 0:01:42]} Rb5 {[%emt 0:01:07]} 53. Rc8 {[%emt 0:02:20]} Rd5+ {[%emt 0:00:28]} 54. Kc2 {[%emt 0:00:19]} Kc5 {[%emt 0:02:00]} 55. Rh8 {[%emt 0:00:39]} g4 {[%emt 0:00:06]} 56. f4 {[%emt 0:01:37]} Kb4 {[%emt 0:00:23]} 57. Rxh5 {[%emt 0:00:54]} Ka3 {[%emt 0:00:24]} 58. h3 {[%emt 0:01:26]} gxh3 {[%emt 0:00:13]} 59. Rxh3 {[%emt 0:00:17]} Rc5+ {[%emt 0:00:13]} 60. Kd2 {[%emt 0:00:49]} Kb4 {[%emt 0:01:18]} 61. Kd1 {[%emt 0:01:00]} Rc3 {[%emt 0:01:49]} 62. Rh5 {[%emt 0:00:49]} Rxb3 {[%emt 0:00:06]} 63. Rxf5 {[%emt 0:00:16]} Rxg3 {[%emt 0:00:02]} 64. Rf8 {[%emt 0:00:39]} c5 {[%emt 0:00:01]} 65. f5 {[%emt 0:00:30]} c4 {[%emt 0:00:04]} 66. f6 {[%emt 0:00:36]} Kc3 {[%emt 0:00:02]} 67. f7 {[%emt 0:00:42]} Rf3 {[%emt 0:00:17]} 68. Ke2 {[%emt 0:00:17]} Rf6 {[%emt 0:00:02]} 69. Ke3 {[%emt 0:01:25]} Re6+ {[%emt 0:00:04]} 70. Kf4 {[%emt 0:00:31]} Re7 {[%emt 0:00:02]} 71. Kf5 {[%emt 0:00:34]} Rb7 {[%emt 0:00:15]} 72. Kf6 {[%emt 0:00:22]} 1/2-1/2

[Event "Budapest Spring Festival 2018"]
[Site "Budapest"]
[Date "2018.04.22"]
[Round "5"]
[White "Gyurkovics, Bence"]
[Black "Skomorokhin, Roman"]
[Result "1/2-1/2"]
[ECO "E11"]
[WhiteElo "2286"]
[BlackElo "2387"]
[Annotator "NA"]
[PlyCount "45"]
[EventDate "2018.??.??"]
[EventType "swiss"]
[EventCountry "HUN"]
[SourceTitle "playchess.com"]
[Source "ChessBase"]
[SourceQuality "1"]
[TimeControl "40/5400+30:1800+30"]

1. d4 {[%emt 0:00:03]} Nf6 {[%emt 0:00:43]} 2. c4 {[%emt 0:00:08]} e6 {[%emt 0:00:18]} 3. Nf3 {[%emt 0:00:08]} Bb4+ {[%emt 0:00:30]} 4. Bd2 {[%emt 0:00:06]} a5 {[%emt 0:00:10]} 5. g3 {[%emt 0:00:20]} O-O {[%emt 0:00:42]} 6. Nc3 {[%emt 0:03:29]} d6 {[%emt 0:01:28]} 7. Bg2 {[%emt 0:00:47]} Nbd7 {[%emt 0:01:14]} 8. O-O {[%emt 0:02:05]} Qe7 {[%emt 0:00:38]} 9. Qc2 {[%emt 0:05:40]} Bxc3 {[%emt 0:03:36]} 10. Bxc3 {[%emt 0:00:25]} e5 {[%emt 0:00:38]} 11. e4 {[%emt 0:09:51]} Re8 {[%emt 0:15:57]} 12. d5 {[%emt 0:04:11]} c6 {[%emt 0:12:06]} 13. Rfc1 {[%emt 0:11:40]} Rf8 {[%emt 0:15:21]} 14. Ne1 {[%emt 0:03:56]} g6 {[%emt 0:03:39]} 15. Nd3 $14 {[%emt 0:04:20]} cxd5 {[%emt 0:03:08]} 16. cxd5 {[%emt 0:02:07]} b6 {[%emt 0:00:07]} 17. Bd2 {[%emt 0:15:40]} Ba6 {[%emt 0:00:56]} 18. Bg5 {[%emt 0:01:24]} Rfc8 {[%emt 0:07:14]} 19. Qd2 {[%emt 0:00:53]} Kg7 {[%emt 0:08:24]} 20. Bh6+ {[%emt 0:03:21]} Kg8 {[%emt 0:01:02]} 21. Bg5 {[%emt 0:00:51]} Kg7 {[%emt 0:00:12]} 22. Bh6+ {[%emt 0:12:15]} Kg8 {[%emt 0:01:07]} 23. Bg5 {[%emt 0:00:12]} 1/2-1/2

[Event "Budapest Spring Festival 2018"]
[Site "Budapest"]
[Date "2018.04.26"]
[Round "9"]
[White "Erenberg, Ariel"]
[Black "Pranav Anand"]
[Result "1/2-1/2"]
[ECO "D37"]
[WhiteElo "2406"]
[BlackElo "2158"]
[Annotator "NA"]
[PlyCount "51"]
[EventDate "2018.??.??"]
[EventType "swiss"]
[EventCountry "HUN"]
[SourceTitle "playchess.com"]
[Source "ChessBase"]
[SourceQuality "1"]
[TimeControl "40/5400+30:1800+30"]

1. d4 Nf6 2. c4 e6 3. Nf3 d5 4. Nc3 Be7 5. g3 dxc4 {E01: Catalan: Early deviations} (5... O-O 6. Bg2 dxc4 7. Ne5 Nc6 8. Bxc6 bxc6 9. Nxc6 Qe8 10. Nxe7+ Qxe7 11. Qa4 c5 12. dxc5 Qxc5 13. Be3 Qc7 14. O-O Nd5 15. Bd4 Bd7 16. Qa3 a5 17. Rad1 Nb4 18. Bc5 Qxc5 19. Rxd7 Rab8 {½-½ (46) Svidler,P (2763)-Nakamura,H (2780) Palma de Mallorca 2017}) 6. Qa4+ Nbd7 {[%emt 0:05:36]} 7. Qxc4 {[%emt 0:07:07]} a6 {[%emt 0:03:31]} 8. a4 {[%emt 0:01:32]} O-O {[%emt 0:10:44]} 9. Bg2 {[%emt 0:10:22]} b5 $146 {[%emt 0:02:17]} ({Predecessor:} 9... c5 10. a5 cxd4 11. Qxd4 Nc5 12. Qc4 e5 13. Ng5 h6 14. b4 Qd4 15. Qxd4 exd4 16. bxc5 dxc3 {1-0 (54) Jablonicky,F (2107)-Sahidi,S (1856) Senica 2013}) 10. Qd3 {[%emt 0:09:39]} Bb7 {[%emt 0:16:14]} 11. axb5 {[%emt 0:00:07]} axb5 {[%emt 0:06:05]} 12. Rxa8 {[%emt 0:00:11]} Qxa8 {[%emt 0:00:02]} 13. Qxb5 {[%emt 0:00:18]} Bc6 {[%emt 0:01:42]} 14. Qc4 {[%emt 0:05:57]} e5 {[%emt 0:03:18]} 15. O-O {[%emt 0:08:13]} Nb6 {[%emt 0:03:42]} 16. Qa2 {[%emt 0:00:15]} Qxa2 {[%emt 0:01:47]} 17. Nxa2 {[%emt 0:00:11]} Bxf3 {[%emt 0:00:12]} 18. Bxf3 {[%emt 0:00:30]} exd4 {[%emt 0:00:25]} 19. Rd1 {[%emt 0:01:03]} c5 {[%emt 0:01:24]} 20. e3 {[%emt 0:00:42]} dxe3 {[%emt 0:02:19]} 21. Bxe3 {[%emt 0:00:11]} Nc4 {[%emt 0:00:36]} 22. Bc1 {[%emt 0:04:52]} Rb8 {[%emt 0:00:57]} 23. Re1 {[%emt 0:00:55]} Bd6 {[%emt 0:01:28]} 24. Re2 {[%emt 0:01:15]} Ne5 $11 {[%emt 0:02:57]} 25. Bg2 {[%emt 0:03:41]} Nd3 {[%emt 0:01:05]} 26. Rc2 {[%emt 0:03:39]} 1/2-1/2